fUST/lending_fUST_20240903
["ID","MTS","AMOUNT","RATE_DAILY","PERIOD"]
[336993003,1725293431672,-186.57798,0.00034385,2]
[336993005,1725293431682,-300.0,0.00037663,2]
[336993007,1725293431693,-7776.6500722,0.00037664,2]
[336993009,1725293431703,-194.271171,0.00039452,2]
[336993011,1725293431713,-271.647695,0.00041918,120]
[336993013,1725293431723,-16178.7017028,0.00042,120]
[336993050,1725293437811,-3821.2982972,0.00042,120]
[336993052,1725293437823,-644.3152886,0.00042465,120]
[336993054,1725293437833,-178.0,0.00043,90]
[336993056,1725293437844,-1000.0,0.00043,120]
[336993058,1725293437854,-159.0,0.00043,90]
[336993060,1725293437864,-313.03156016,0.00043557,48]
[336993062,1725293437874,-923.16078325,0.000437,120]
[336993064,1725293437884,-55555.0,0.00043735,60]
[336993066,1725293437894,-30901.05,0.00043823,3]
[336993068,1725293437904,-20444.47454233,0.00043824,3]
[336993070,1725293437917,-5306.39545767,0.00043824,3]
[336993072,1725293437928,-192.63550765,0.00043834,2]
[336993075,1725293437939,-2901.40569696,0.00043834,2]
[336993291,1725293439917,-9108.41659558,0.00043834,2]
[336993293,1725293439927,-500.0,0.00043834,120]
[336993295,1725293439937,-500.0,0.00043834,31]
[336993297,1725293439946,-500.0,0.00043834,31]
[336993299,1725293439955,-500.0,0.00043834,31]
[336993301,1725293439965,-225.43056508,0.00043834,31]
[336993303,1725293439975,-427.45628008,0.00043834,31]
[336993305,1725293439985,-500.0,0.00043834,31]
[336993307,1725293439996,-500.0,0.00043834,31]
[336993309,1725293440005,-500.0,0.00043834,31]
[336993311,1725293440016,-500.0,0.00043834,31]
[336993313,1725293440025,-500.0,0.00043834,31]
[336993315,1725293440035,-500.0,0.00043834,31]
[336993317,1725293440044,-500.0,0.00043834,31]
[336993319,1725293440054,-429.43834488,0.00043834,31]
[336993321,1725293440064,-500.0,0.00043834,31]
[336993323,1725293440074,-500.0,0.00043834,31]
[336993325,1725293440083,-500.0,0.00043834,31]
[336993327,1725293440093,-500.0,0.00043834,31]
[336993329,1725293440103,-500.0,0.00043834,31]
[336993331,1725293440113,-500.0,0.00043834,31]
[336993333,1725293440123,-500.0,0.00043834,31]
[336993335,1725293440133,-500.0,0.00043834,31]
[336993337,1725293440143,-500.0,0.00043834,31]
[336993339,1725293440153,-500.0,0.00043834,31]
[336993341,1725293440163,-500.0,0.00043834,31]
[336993343,1725293440173,-500.0,0.00043834,31]
[336993345,1725293440184,-500.0,0.00043834,31]
[336993347,1725293440194,-500.0,0.00043834,31]
[336993349,1725293440204,-500.0,0.00043834,31]
[336993351,1725293440214,-500.0,0.00043834,31]
[336993353,1725293440223,-500.0,0.00043834,31]
[336993355,1725293440233,-500.0,0.00043834,31]
[336993357,1725293440243,-500.0,0.00043834,31]
[336993359,1725293440253,-500.0,0.00043834,31]
[336993361,1725293440262,-449.5199333,0.00043834,31]
[336993363,1725293440272,-500.0,0.00043834,31]
[336993365,1725293440283,-500.0,0.00043834,31]
[336993367,1725293440294,-500.0,0.00043834,31]
[336993369,1725293440304,-500.0,0.00043834,31]
[336993371,1725293440314,-500.0,0.00043834,31]
[336993373,1725293440324,-500.0,0.00043834,31]
[336993375,1725293440335,-500.0,0.00043834,31]
[336993377,1725293440345,-500.0,0.00043834,31]
[336993380,1725293440355,-500.0,0.00043834,31]
[336993382,1725293440365,-500.0,0.00043834,31]
[336993384,1725293440375,-500.0,0.00043834,31]
[336993386,1725293440386,-500.0,0.00043834,31]
[336993388,1725293440395,-500.0,0.00043834,31]
[336993390,1725293440406,-500.0,0.00043834,31]
[336993392,1725293440415,-5550.02203853,0.00043835,61]
[336993432,1725293445772,-739.348,0.00043735,2]
[336993433,1725293445787,-1779.18612113,0.00043735,2]
[336993434,1725293445797,-160.52958971,0.00043834,2]
[336993435,1725293445806,-3322.33680886,0.00043834,2]
[336993446,1725293454331,299.25,0.000205,2]
[336993450,1725293860401,313.03156016,0.0002,2]
[336993455,1725294534257,155.22517183,0.000205,2]
[336993459,1725294602615,155.0,0.000205,2]
[336993460,1725294607522,155.0,0.000205,2]
[336993461,1725294612430,232.89798845,0.000205,2]
[336993565,1725294638243,-3000.0,0.00024381,2]
[336993566,1725294638253,-251.0,0.00024418,2]
[336993567,1725294638263,-162.9415559,0.00024658,15]
[336993568,1725294638273,-310.05240964,0.00025,60]
[336993569,1725294638282,-7712.16184031,0.00025204,2]
[336993570,1725294638291,-3000.0,0.000254,2]
[336993571,1725294638300,-3000.0,0.0002541,2]
[336993572,1725294638310,-3000.0,0.0002542,2]
[336993573,1725294638321,-3000.0,0.0002543,2]
[336993574,1725294638331,-3000.0,0.0002544,2]
[336993575,1725294638341,-3000.0,0.0002545,2]
[336993576,1725294638351,-3000.0,0.0002546,2]
[336993577,1725294638361,-900.0,0.00025469,3]
[336993578,1725294638371,-3000.0,0.0002547,2]
[336993579,1725294638380,-500.0,0.00025479,2]
[336993580,1725294638390,-500.0,0.00025479,2]
[336993581,1725294638402,-500.0,0.00025479,2]
[336993582,1725294638412,-3000.0,0.0002548,2]
[336993583,1725294638422,-3000.0,0.0002549,2]
[336993584,1725294638434,-3000.0,0.000255,2]
[336993585,1725294638445,-158.51837086,0.000255,2]
[336993586,1725294638454,-3000.0,0.0002551,2]
[336993587,1725294638464,-3000.0,0.0002552,2]
[336993588,1725294638474,-3000.0,0.0002553,2]
[336993589,1725294638483,-3000.0,0.0002554,2]
[336993590,1725294638492,-3000.0,0.0002555,2]
[336993591,1725294638501,-3000.0,0.0002556,2]
[336993592,1725294638510,-3000.0,0.0002557,2]
[336993593,1725294638520,-5850.0,0.0002558,2]
[336993594,1725294638529,-266.89527363,0.00025616,2]
[336993595,1725294638539,-576.66459602,0.00025616,2]
[336993596,1725294638548,-500.0,0.00025616,2]
[336993597,1725294638557,-523.56882619,0.00026,2]
[336993598,1725294638566,-165.41208909,0.0003,2]
[336993599,1725294638575,-30489.94,0.00030152,3]
[336993600,1725294638586,-454.98,0.00030153,3]
[336993601,1725294638597,-500.0,0.00030161,2]
[336993602,1725294638608,-500.0,0.00030161,2]
[336993603,1725294638618,-179.18652154,0.00030161,2]
[336993604,1725294638628,-500.0,0.00030161,2]
[336993605,1725294638637,-500.0,0.00030161,2]
[336993606,1725294638646,-500.0,0.00030161,2]
[336993607,1725294638656,-500.0,0.00030161,2]
[336993608,1725294638665,-253.50897154,0.00030161,2]
[336993609,1725294638674,-500.0,0.00030161,2]
[336993610,1725294638683,-500.0,0.00030161,2]
[336993611,1725294638694,-500.0,0.00030161,2]
[336993612,1725294638703,-500.0,0.00030161,2]
[336993613,1725294638713,-500.0,0.00030161,2]
[336993614,1725294638722,-9794.50560343,0.00030162,11]
[336993615,1725294638731,-120912.28120377,0.00030162,30]
[336993637,1725294640046,-500.0,0.00030161,2]
[336993638,1725294640056,-500.0,0.00030161,2]
[336993640,1725294640066,-500.0,0.00030161,2]
[336993642,1725294640082,-500.0,0.00030161,2]
[336993644,1725294640092,-500.0,0.00030161,2]
[336993646,1725294640102,-500.0,0.00030161,2]
[336993648,1725294640112,-500.0,0.00030161,2]
[336993649,1725294640124,-500.0,0.00030161,2]
[336993650,1725294640135,-500.0,0.00030161,2]
[336993651,1725294640146,-500.0,0.00030161,2]
[336993652,1725294640156,-500.0,0.00030161,2]
[336993653,1725294640167,-500.0,0.00030161,2]
[336993654,1725294640177,-500.0,0.00030161,2]
[336993655,1725294640188,-500.0,0.00030161,2]
[336993656,1725294640199,-500.0,0.00030161,2]
[336993657,1725294640210,-500.0,0.00030161,2]
[336993658,1725294640222,-500.0,0.00030161,2]
[336993659,1725294640233,-500.0,0.00030161,2]
[336993660,1725294640243,-500.0,0.00030161,2]
[336993661,1725294640252,-500.0,0.00030161,2]
[336993662,1725294640262,-500.0,0.00030161,2]
[336993663,1725294640271,-500.0,0.00030161,2]
[336993664,1725294640281,-500.0,0.00030161,2]
[336993665,1725294640291,-500.0,0.00030161,2]
[336993666,1725294640300,-500.0,0.00030161,2]
[336993667,1725294640309,-500.0,0.00030161,2]
[336993668,1725294640318,-500.0,0.00030161,2]
[336993669,1725294640328,-500.0,0.00030161,2]
[336993670,1725294640338,-500.0,0.00030161,2]
[336993671,1725294640348,-500.0,0.00030161,2]
[336993672,1725294640357,-500.0,0.00030161,2]
[336993673,1725294640367,-500.0,0.00030161,2]
[336993674,1725294640377,-500.0,0.00030161,2]
[336993675,1725294640386,-500.0,0.00030161,2]
[336993676,1725294640396,-500.0,0.00030161,2]
[336993677,1725294640406,-500.0,0.00030161,2]
[336993678,1725294640415,-500.0,0.00030161,2]
[336993679,1725294640425,-500.0,0.00030161,2]
[336993680,1725294640436,-500.0,0.00030161,2]
[336993681,1725294640446,-500.0,0.00030161,2]
[336993682,1725294640455,-500.0,0.00030161,2]
[336993683,1725294640465,-500.0,0.00030161,2]
[336993684,1725294640475,-495.19933301,0.00030161,2]
[336993685,1725294640485,-500.0,0.00030161,2]
[336993686,1725294640495,-500.0,0.00030161,2]
[336993687,1725294640505,-500.0,0.00030161,2]
[336993688,1725294640515,-500.0,0.00030161,2]
[336993689,1725294640524,-500.0,0.00030161,2]
[336993690,1725294640539,-5586.66782886,0.00030162,30]
[336993711,1725294646176,-500.0,0.00030161,2]
[336993712,1725294646185,-500.0,0.00030161,2]
[336993713,1725294646195,-500.0,0.00030161,2]
[336993714,1725294646205,-500.0,0.00030161,2]
[336993715,1725294646215,-500.0,0.00030161,2]
[336993716,1725294646225,-500.0,0.00030161,2]
[336993717,1725294646235,-500.0,0.00030161,2]
[336993718,1725294646245,-500.0,0.00030161,2]
[336993719,1725294646255,-500.0,0.00030161,2]
[336993720,1725294646265,-500.0,0.00030161,2]
[336993721,1725294646275,-500.0,0.00030161,2]
[336993722,1725294646292,-500.0,0.00030161,2]
[336993723,1725294646304,-500.0,0.00030161,2]
[336993724,1725294646315,-500.0,0.00030161,2]
[336993725,1725294646326,-500.0,0.00030161,2]
[336993726,1725294646336,-10274.78902958,0.00030162,30]
[336993782,1725295832109,-3150.0,0.000254,2]
[336993784,1725295832119,-277.87303221,0.00025479,2]
[336993846,1725295838254,-298.79156381,0.00025479,2]
[336993847,1725295838263,-500.0,0.00025479,2]
[336993848,1725295838273,-266.89527363,0.00025616,2]
[336993849,1725295838283,-300.0,0.00025996,2]
[336993850,1725295838292,-24900.0,0.00025997,2]
[336993851,1725295838302,-4847.61888326,0.00028652,2]
[336993852,1725295838311,-4847.61888326,0.00028859,2]
[336993853,1725295838321,-4847.61888326,0.00029065,2]
[336993854,1725295838330,-4847.61888326,0.0002934,2]
[336993855,1725295838339,-3256.8502514,0.00029673,2]
[336993856,1725295838356,-1590.76863186,0.00029673,2]
[336993857,1725295838365,-4847.61888331,0.00030068,2]
[336993858,1725295838374,-690.2828,0.00031244,30]
[336993859,1725295838383,-186.5779809,0.00031363,2]
[336993860,1725295838393,-2400.54216299,0.00034783,2]
[336993861,1725295838404,-17803.14,0.00034863,3]
[336993862,1725295838413,-21987.23276149,0.00034863,30]
[336993863,1725295838429,-169616.94308521,0.00034863,30]
[336994675,1725297038384,-150.0,0.000254,2]
[336994677,1725297038393,-4402.9841543,0.000306,2]
[336994679,1725297038404,-302.15405627,0.00034689,30]
[336994681,1725297038413,-4487.32490398,0.00034701,2]
[336994683,1725297038422,-23772.87,0.00034847,3]
[336994685,1725297038432,-19810.72,0.00034847,3]
[336994687,1725297038441,-454.98,0.00034849,3]
[336994689,1725297038450,-500.0,0.00034856,7]
[336994691,1725297038460,-500.0,0.00034856,7]
[336994693,1725297038469,-500.0,0.00034856,7]
[336994695,1725297038479,-500.0,0.00034856,7]
[336994697,1725297038488,-500.0,0.00034856,7]
[336994699,1725297038497,-500.0,0.00034856,7]
[336994701,1725297038507,-500.0,0.00034856,7]
[336994703,1725297038516,-253.50897154,0.00034856,7]
[336994705,1725297038526,-500.0,0.00034856,7]
[336994707,1725297038535,-179.18652154,0.00034856,7]
[336994709,1725297038544,-500.0,0.00034856,7]
[336994711,1725297038554,-500.0,0.00034856,7]
[336994713,1725297038563,-500.0,0.00034856,7]
[336994715,1725297038573,-500.0,0.00034856,7]
[336994717,1725297038583,-500.0,0.00034856,7]
[336994732,1725297038717,-500.0,0.00034856,7]
[336994735,1725297038728,-500.0,0.00034856,7]
[336994736,1725297038737,-500.0,0.00034856,7]
[336994739,1725297038747,-500.0,0.00034856,7]
[336994741,1725297038757,-500.0,0.00034856,7]
[336994743,1725297038767,-500.0,0.00034856,7]
[336994745,1725297038776,-500.0,0.00034856,7]
[336994747,1725297038786,-500.0,0.00034856,7]
[336994749,1725297038796,-500.0,0.00034856,7]
[336994751,1725297038806,-500.0,0.00034856,7]
[336994753,1725297038815,-500.0,0.00034856,7]
[336994755,1725297038825,-500.0,0.00034856,7]
[336994757,1725297038834,-500.0,0.00034856,7]
[336994759,1725297038843,-500.0,0.00034856,7]
[336994761,1725297038852,-500.0,0.00034856,7]
[336994763,1725297038862,-649.5199333,0.00034856,7]
[336994765,1725297038871,-500.0,0.00034856,7]
[336994767,1725297038881,-500.0,0.00034856,7]
[336994769,1725297038890,-500.0,0.00034856,7]
[336994771,1725297038899,-500.0,0.00034856,7]
[336994773,1725297038910,-500.0,0.00034856,7]
[336994775,1725297038920,-500.0,0.00034856,7]
[336994777,1725297038929,-500.0,0.00034856,7]
[336994779,1725297038938,-500.0,0.00034856,7]
[336994782,1725297038948,-9794.50560343,0.00034857,11]
[336994784,1725297038962,-87359.18894085,0.00034857,30]
[336994933,1725297040381,-12553.066236,0.00034857,30]
[336995199,1725297043204,-4384.79,0.00034847,3]
[336995200,1725297043261,-12124.14,0.00034847,3]
[336995201,1725297043271,-20726.9406279,0.00034857,30]
[336995328,1725298075677,8523.29648311,0.0002,2]
[336995329,1725298075708,10034.07191566,0.0002,2]
[336995330,1725298120020,302.15405627,0.0002,2]
[336995331,1725298123257,17080.00962889,0.0002,2]
[336995388,1725298232414,-4194.15094331,0.00025,2]
[336995389,1725298232428,-591.8739997,0.00025,2]
[336995412,1725298238610,-3666.88147422,0.00025,2]
[336995413,1725298238620,-501.85257797,0.000252,2]
[336995414,1725298238629,-197.80040156,0.000253,2]
[336995415,1725298238640,-300.0,0.00025999,2]
[336995416,1725298238651,-523.56882619,0.00026,2]
[336995417,1725298238660,-43790.99903941,0.00027,3]
[336995418,1725298238672,-200.0,0.00028599,2]
[336995419,1725298238681,-2000.0,0.0003,30]
[336995420,1725298238690,-165.41208909,0.0003,2]
[336995421,1725298238702,-182.077578,0.00030999,2]
[336995422,1725298238711,-231.335596,0.00031753,2]
[336995423,1725298238721,-231.335596,0.0003184,2]
[336995424,1725298238731,-231.335596,0.00031927,2]
[336995425,1725298238740,-231.335596,0.00032014,2]
[336995426,1725298238750,-231.335596,0.00032101,2]
[336995427,1725298238759,-231.335596,0.00032188,2]
[336995428,1725298238768,-231.335596,0.00032276,2]
[336995429,1725298238777,-231.335596,0.00032363,2]
[336995430,1725298238787,-231.335596,0.0003245,2]
[336995431,1725298238796,-231.335596,0.00032537,2]
[336995432,1725298238806,-231.335596,0.00032624,2]
[336995433,1725298238815,-231.335596,0.00032711,2]
[336995434,1725298238824,-231.335596,0.00032798,2]
[336995435,1725298238833,-231.335596,0.00032885,2]
[336995436,1725298238843,-231.335596,0.00032972,2]
[336995437,1725298238853,-3000.81708515,0.00033,2]
[336995438,1725298238862,-231.335596,0.00033059,2]
[336995439,1725298238871,-231.335596,0.00033146,2]
[336995440,1725298238881,-231.335596,0.00033234,2]
[336995441,1725298238890,-158.51837086,0.0003332,5]
[336995442,1725298238900,-231.335596,0.00033321,2]
[336995443,1725298238910,-231.335596,0.00033408,2]
[336995444,1725298238919,-4487.32490398,0.00034493,2]
[336995445,1725298238928,-302.18418731,0.00034648,30]
[336995446,1725298238937,-3852.1551977,0.0003469,2]
[336995447,1725298238948,-17913.89,0.00034748,3]
[336995448,1725298238958,-500.0,0.00034757,7]
[336995449,1725298238967,-500.0,0.00034757,7]
[336995450,1725298238975,-500.0,0.00034757,7]
[336995451,1725298238985,-253.50897154,0.00034757,7]
[336995452,1725298238995,-500.0,0.00034757,7]
[336995453,1725298239004,-500.0,0.00034757,7]
[336995454,1725298239013,-254.65261205,0.00034757,7]
[336995455,1725298239022,-500.0,0.00034757,7]
[336995456,1725298239032,-500.0,0.00034757,7]
[336995457,1725298239042,-500.0,0.00034757,7]
[336995458,1725298239051,-500.0,0.00034757,7]
[336995459,1725298239183,-500.0,0.00034757,7]
[336995460,1725298239193,-500.0,0.00034757,7]
[336995461,1725298239213,-500.0,0.00034757,7]
[336995462,1725298239222,-500.0,0.00034757,7]
[336995463,1725298239231,-500.0,0.00034757,7]
[336995464,1725298239240,-500.0,0.00034757,7]
[336995465,1725298239250,-500.0,0.00034757,7]
[336995466,1725298239259,-500.0,0.00034757,7]
[336995467,1725298239268,-500.0,0.00034757,7]
[336995468,1725298239278,-500.0,0.00034757,7]
[336995469,1725298239287,-500.0,0.00034757,7]
[336995470,1725298239296,-500.0,0.00034757,7]
[336995471,1725298239306,-500.0,0.00034757,7]
[336995472,1725298239315,-500.0,0.00034757,7]
[336995473,1725298239325,-500.0,0.00034757,7]
[336995474,1725298239338,-500.0,0.00034757,7]
[336995475,1725298239347,-500.0,0.00034757,7]
[336995476,1725298239357,-500.0,0.00034757,7]
[336995477,1725298239366,-500.0,0.00034757,7]
[336995478,1725298239378,-649.5199333,0.00034757,7]
[336995479,1725298239388,-500.0,0.00034757,7]
[336995480,1725298239397,-500.0,0.00034757,7]
[336995481,1725298239408,-500.0,0.00034757,7]
[336995482,1725298239417,-500.0,0.00034757,7]
[336995483,1725298239426,-500.0,0.00034757,7]
[336995484,1725298239435,-500.0,0.00034757,7]
[336995485,1725298239449,-500.0,0.00034757,7]
[336995486,1725298239459,-500.0,0.00034757,7]
[336995487,1725298239469,-500.0,0.00034757,7]
[336995488,1725298239478,-500.0,0.00034757,7]
[336995489,1725298239487,-9794.50560343,0.00034758,11]
[336995490,1725298239497,-98053.08068431,0.00034758,30]
[336995491,1725298239509,-933.92118199,0.00034758,30]
[336995532,1725298243439,-22976.9406279,0.00034758,30]
[336995566,1725299126441,302.30477158,0.0002,2]
[336995570,1725299251662,302.33493269,0.0002,2]
[336995575,1725299369148,-302.30477158,0.000202,2]
[336995576,1725299369171,-302.33493269,0.000202,2]
[336995577,1725299369193,-302.30477158,0.000204,2]
[336995578,1725299369215,-302.33493269,0.000204,2]
[336995579,1725299369238,-190.06061896,0.000206,2]
[336995765,1725299438696,-302.33493269,0.000206,2]
[336995767,1725299438706,-453.23110548,0.000208,2]
[336995769,1725299438715,-231.335596,0.00022723,2]
[336995771,1725299438725,-231.335596,0.00022785,2]
[336995773,1725299438734,-231.335596,0.00022847,2]
[336995774,1725299438743,-231.335596,0.0002291,2]
[336995776,1725299438752,-231.335596,0.00022972,2]
[336995778,1725299438761,-231.335596,0.00023034,2]
[336995780,1725299438772,-231.335596,0.00023097,2]
[336995782,1725299438781,-231.335596,0.00023159,2]
[336995784,1725299438790,-231.335596,0.00023221,2]
[336995786,1725299438800,-231.335596,0.00023284,2]
[336995788,1725299438810,-231.335596,0.00023346,2]
[336995790,1725299438819,-231.335596,0.00023408,2]
[336995791,1725299438828,-231.335596,0.00023471,2]
[336995793,1725299438838,-231.335596,0.00023533,2]
[336995795,1725299438847,-231.335596,0.00023595,2]
[336995797,1725299438856,-231.335596,0.00023658,2]
[336995799,1725299438867,-231.335596,0.0002372,2]
[336995801,1725299438877,-231.335596,0.00023782,2]
[336995803,1725299438886,-231.335596,0.00023845,2]
[336995805,1725299438896,-231.335596,0.00023907,2]
[336995807,1725299438905,-182.077578,0.00023994,2]
[336995809,1725299438915,-300.0,0.00024228,2]
[336995811,1725299438924,-4402.9841543,0.00024229,2]
[336995813,1725299438933,-3852.1551977,0.0002536,2]
[336995814,1725299438943,-3000.0,0.000254,2]
[336995816,1725299438952,-3000.0,0.0002541,2]
[336995818,1725299438961,-3000.0,0.0002542,2]
[336995820,1725299438971,-3000.0,0.0002543,2]
[336995822,1725299438981,-3000.0,0.0002544,2]
[336995824,1725299438990,-3000.0,0.0002545,2]
[336995826,1725299439000,-3000.0,0.0002546,2]
[336995828,1725299439009,-3000.0,0.0002547,2]
[336995830,1725299439019,-500.0,0.00025479,2]
[336995832,1725299439028,-500.0,0.00025479,2]
[336995833,1725299439037,-3000.0,0.0002548,2]
[336995835,1725299439047,-3000.0,0.0002549,2]
[336995837,1725299439057,-3000.0,0.000255,2]
[336995839,1725299439066,-3000.0,0.0002551,2]
[336995841,1725299439076,-3000.0,0.0002552,2]
[336995843,1725299439086,-3000.0,0.0002553,2]
[336995845,1725299439095,-3000.0,0.0002554,2]
[336995847,1725299439105,-3000.0,0.0002555,2]
[336995849,1725299439115,-3000.0,0.0002556,2]
[336995851,1725299439125,-3000.0,0.0002557,2]
[336995853,1725299439134,-3000.0,0.0002558,2]
[336995855,1725299439144,-5850.0,0.0002559,2]
[336995857,1725299439155,-500.0,0.00025616,2]
[336995858,1725299439164,-420.0,0.00026651,2]
[336995860,1725299439174,-1021.52122361,0.00026999,7]
[336995862,1725299439184,-15022.9,0.00032476,3]
[336995864,1725299439193,-454.98,0.00032476,3]
[336995866,1725299439203,-23455.76,0.00032476,3]
[336995867,1725299439212,-500.0,0.00032485,2]
[336995868,1725299439221,-500.0,0.00032485,2]
[336995869,1725299439230,-500.0,0.00032485,2]
[336995870,1725299439240,-500.0,0.00032485,2]
[336995871,1725299439249,-500.0,0.00032485,2]
[336995872,1725299439258,-500.0,0.00032485,2]
[336995873,1725299439268,-500.0,0.00032485,2]
[336995874,1725299439278,-253.50897154,0.00032485,2]
[336995875,1725299439287,-254.65261205,0.00032485,2]
[336995876,1725299439297,-500.0,0.00032485,2]
[336995877,1725299439308,-500.0,0.00032485,2]
[336995878,1725299439317,-500.0,0.00032485,2]
[336995879,1725299439326,-500.0,0.00032485,2]
[336995880,1725299439336,-500.0,0.00032485,2]
[336995881,1725299439346,-500.0,0.00032485,2]
[336995882,1725299439355,-500.0,0.00032485,2]
[336995883,1725299439366,-500.0,0.00032485,2]
[336995884,1725299439375,-500.0,0.00032485,2]
[336995885,1725299439385,-500.0,0.00032485,2]
[336995886,1725299439394,-500.0,0.00032485,2]
[336995887,1725299439404,-649.5199333,0.00032485,2]
[336995888,1725299439414,-500.0,0.00032485,2]
[336995889,1725299439423,-500.0,0.00032485,2]
[336995890,1725299439432,-500.0,0.00032485,2]
[336995891,1725299439442,-500.0,0.00032485,2]
[336995892,1725299439452,-500.0,0.00032485,2]
[336995893,1725299439463,-500.0,0.00032485,2]
[336995894,1725299439472,-500.0,0.00032485,2]
[336995895,1725299439481,-500.0,0.00032485,2]
[336995896,1725299439491,-500.0,0.00032485,2]
[336995897,1725299439500,-500.0,0.00032485,2]
[336995898,1725299439510,-500.0,0.00032485,2]
[336995899,1725299439519,-500.0,0.00032485,2]
[336995900,1725299439528,-500.0,0.00032485,2]
[336995901,1725299439538,-500.0,0.00032485,2]
[336995902,1725299439547,-500.0,0.00032485,2]
[336995903,1725299439558,-500.0,0.00032485,2]
[336995904,1725299439567,-500.0,0.00032485,2]
[336995905,1725299439577,-500.0,0.00032485,2]
[336995906,1725299439586,-500.0,0.00032485,2]
[336995907,1725299439596,-500.0,0.00032485,2]
[336995908,1725299439606,-500.0,0.00032485,2]
[336995909,1725299439615,-9794.50560343,0.00032486,11]
[336995910,1725299439624,-78362.08377022,0.00032486,30]
[336995920,1725299440905,-981.38619541,0.00032466,3]
[336995951,1725299445938,-18565.07380459,0.00032466,3]
[336995952,1725299445948,-405876.68476978,0.00032486,30]
[336995953,1725299445957,-158.51837086,0.00032487,5]
[336995954,1725299445966,-5426.93013768,0.00033181,2]
[336995955,1725299445976,-2224.55451421,0.00033547,2]
[336995956,1725299445985,-5426.93013768,0.00033575,2]
[336995957,1725299445994,-21712.68061029,0.00033637,11]
[336995958,1725299446004,-2821.750791,0.00033637,60]
[336995959,1725299446014,-800121.4606,0.00033637,4]
[336995960,1725299446024,-74503.21098325,0.00033647,2]
[336995961,1725299446034,-5426.93013768,0.00033753,2]
[336995962,1725299446043,-2000.0,0.00034,2]
[336995963,1725299446052,-1000.0,0.00034,34]
[336995964,1725299446067,-446.497625,0.00034091,14]
[336995965,1725299446076,-446.497625,0.00034091,14]
[336995966,1725299446085,-5426.93013768,0.00034157,2]
[336995967,1725299446094,-151.0,0.00034435,14]
[336995968,1725299446104,-211.489037,0.00034435,14]
[336995969,1725299446115,-211.489037,0.00034435,14]
[336995970,1725299446125,-151.0,0.00034435,14]
[336995971,1725299446135,-163.944907,0.00034436,14]
[336995972,1725299446145,-211.489037,0.00034436,14]
[336995973,1725299446155,-211.489037,0.00034436,14]
[336995974,1725299446164,-211.489037,0.00034436,14]
[336995975,1725299446174,-211.489037,0.00034436,14]
[336995977,1725299446183,-151.0,0.00034436,14]
[336995979,1725299446194,-234.224439,0.00034436,14]
[336995980,1725299446203,-446.497625,0.00034436,14]
[336995981,1725299446212,-446.497625,0.00034436,14]
[336995982,1725299446222,-446.497625,0.00034436,14]
[336995983,1725299446231,-446.497625,0.00034436,14]
[336995984,1725299446240,-211.489037,0.00034446,14]
[336995985,1725299446250,-211.489037,0.00034446,14]
[336995986,1725299446260,-446.497625,0.00034446,14]
[336995987,1725299446270,-446.497625,0.00034446,14]
[336995988,1725299446279,-211.489037,0.00034456,14]
[336995990,1725299446289,-211.489037,0.00034456,14]
[336995992,1725299446299,-5426.9301377,0.00034479,2]
[336995994,1725299446313,-243.5707,0.00034609,2]